bitfinex/quotes_ETHUSD_20220115
["timestamp","ask_amount","ask_price","bid_price","bid_amount"]
[1642238016236,2.84450686,3316.6,3316.5,2.5781369]
[1642238016434,2.84450686,3316.6,3316.5,2.6235999]
[1642238016841,2.84450686,3316.6,3316.5,2.5781369]
[1642238017038,2.84450686,3316.6,3316.5,2.6235999]
[1642238018787,2.84450686,3316.6,3316.5,2.6690629]
[1642238018986,2.84450686,3316.6,3316.5,2.6235999]
[1642238019988,2.84450686,3316.6,3316.4,0.045463]
[1642238020888,2.84450686,3316.6,3316.5,2.57820962]
[1642238023738,2.84450686,3316.6,3316.5,2.62367262]
[1642238036941,2.84450686,3316.6,3316.5,2.70557544]
[1642238044641,2.84450686,3316.6,3316.5,2.75103844]
[1642238047898,2.84450686,3316.6,3316.5,2.70557544]
[1642238048095,2.84244519,3316.6,3316.5,2.70557544]
[1642238048292,2.84244519,3316.6,3316.5,2.75103844]
[1642238048898,2.84244519,3316.6,3316.5,2.79650144]
[1642238049095,8.0,3317.0,3316.6,5.46757296]
[1642238049395,8.0,3317.0,3316.9,5.540926]
[1642238049795,8.0,3317.0,3316.9,5.54376812]
[1642238050298,8.0,3317.0,3316.9,8.12197774]
[1642238051541,8.0,3317.0,3316.9,9.31900767]
[1642238054746,11.0,3317.0,3316.9,9.31900767]
[1642238070321,6.87212964,3317.0,3316.9,9.31900767]
[1642238073210,6.87212964,3317.0,3316.9,9.36447067]
[1642238079794,6.87212964,3317.0,3316.9,9.36162855]
[1642238084151,6.67756785,3317.0,3316.9,9.36162855]
[1642238085993,6.67756785,3317.0,3316.9,9.22523955]
[1642238086197,6.67756785,3317.0,3316.9,9.31616555]
[1642238087296,6.67756785,3317.0,3316.9,3.82070255]
[1642238087496,6.67756785,3317.0,3316.9,3.77523955]
[1642238087997,6.67756785,3317.0,3316.9,3.82070255]
[1642238091246,6.67756785,3317.0,3316.9,3.86616555]
[1642238091451,6.67756785,3317.0,3316.9,3.82070255]
[1642238091647,6.67756785,3317.0,3316.9,3.77523955]
[1642238091847,6.67756785,3317.0,3316.9,2.57820962]
[1642238093499,6.67756785,3317.0,3316.9,2.62367262]
[1642238094500,6.67756785,3317.0,3316.9,2.66913562]
[1642238095200,6.67756785,3317.0,3316.9,5.06913562]
[1642238095401,6.67756785,3317.0,3316.9,5.02367262]
[1642238096005,6.67756785,3317.0,3316.9,5.06913562]
[1642238097246,6.67756785,3317.0,3316.9,5.02367262]
[1642238097445,6.67756785,3317.0,3316.9,4.97820962]
[1642238097647,6.67756785,3317.0,3316.9,5.02367262]
[1642238097848,6.67756785,3317.0,3316.9,5.06913562]
[1642238098047,6.67756785,3317.0,3316.9,5.11459862]
[1642238099251,6.67756785,3317.0,3316.9,2.57820962]
[1642238099547,6.67756785,3317.0,3316.9,2.62367262]
[1642238100999,6.67756785,3317.0,3316.9,4.82367262]
[1642238103302,6.67756785,3317.0,3316.9,2.62367262]
[1642238104153,6.67756785,3317.0,3316.9,2.57820962]
[1642238105553,6.67756785,3317.0,3316.9,2.62367262]
[1642238106157,6.67756785,3317.0,3316.9,2.57820962]
[1642238109399,7.00198201,3317.0,3316.9,2.57820962]
[1642238109601,7.32639617,3317.0,3316.9,2.57820962]
[1642238113649,7.32639599,3317.0,3316.8,2.62367262]
[1642238113849,7.32639599,3317.0,3316.8,2.57820962]
[1642238114249,7.32639599,3317.0,3316.7,1.42966817]
[1642238114449,7.00198183,3317.0,3316.7,1.38420517]
[1642238114648,6.67756767,3317.0,3316.8,0.00341054]
[1642238115049,6.67756767,3317.0,3316.8,2.58117018]
[1642238115306,6.67756767,3317.0,3316.9,3.645463]
[1642238115500,6.67756767,3317.0,3316.9,3.60284212]
[1642238115699,6.67756767,3317.0,3316.9,0.00284212]
[1642238116500,6.67756767,3317.0,3316.9,2.67152776]
[1642238117100,6.67756767,3317.0,3316.9,2.62606476]
[1642238117603,6.67756767,3317.0,3316.9,2.67152776]
[1642238117801,6.67756767,3317.0,3316.9,5.66699076]
[1642238118399,6.67756767,3317.0,3316.9,7.44849874]
[1642238119851,7.32639599,3317.0,3316.9,7.44849874]
[1642238121151,7.32639599,3317.0,3316.9,7.40303574]
[1642238121352,7.2952125,3317.0,3316.9,7.40303574]
[1642238122154,7.2952125,3317.0,3316.9,2.67152776]
[1642238122553,7.2952125,3317.0,3316.9,2.62606476]
[1642238122833,7.2952125,3317.0,3316.9,2.58060176]
[1642238123616,7.2952125,3317.0,3316.9,2.62606476]
[1642238126650,7.2952125,3317.0,3316.9,2.58060176]
[1642238128350,7.2952125,3317.0,3316.9,2.62606476]
[1642238128550,7.2952125,3317.0,3316.9,2.67152776]
[1642238128751,7.2952125,3317.0,3316.9,5.02152776]
[1642238129152,7.2952125,3317.0,3316.9,4.97606476]
[1642238129451,7.2952125,3317.0,3316.9,6.76177854]
[1642238132103,7.2952125,3317.0,3316.9,4.41177854]
[1642238132302,7.2952125,3317.0,3316.9,2.62606476]
[1642238132503,7.2952125,3317.0,3316.9,2.58060176]
[1642238135954,7.2952125,3317.0,3316.9,2.62606476]
[1642238136152,7.2952125,3317.0,3316.9,2.58060176]
[1642238138300,7.2952125,3317.0,3316.9,2.62606476]
[1642238138503,7.2952125,3317.0,3316.9,4.47335315]
[1642238139099,7.2952125,3317.0,3316.9,4.42789015]
[1642238140000,7.2952125,3317.0,3316.9,2.58060176]
[1642238140200,7.2952125,3317.0,3316.9,4.43468752]
[1642238140601,7.2952125,3317.0,3316.9,2.62606476]
[1642238141850,7.2952125,3317.0,3316.9,4.43612251]
[1642238145407,7.2952125,3317.0,3316.9,2.57775964]
[1642238145604,7.2952125,3317.0,3316.9,4.77775964]
[1642238146003,7.2952125,3317.0,3316.9,6.58470957]
[1642238146203,7.2952125,3317.0,3316.9,6.63017257]
[1642238147206,7.2952125,3317.0,3316.9,4.82322264]
[1642238149450,7.2952125,3317.0,3316.9,6.62649867]
[1642238149649,7.2952125,3317.0,3316.9,6.67196167]
[1642238150750,7.2952125,3317.0,3316.9,10.01742467]
[1642238150751,4.26525029,3317.0,3316.9,10.01742467]
[1642238150949,4.26525029,3317.0,3316.9,27.64742467]
[1642238152149,4.26525029,3317.0,3316.9,33.03173338]
[1642238152350,0.040917,3318.1,3317.1,17.63]
[1642238152551,1.507,3319.8,3317.7,0.01293057]
[1642238152552,1.163,3319.5,3317.7,0.01293057]
[1642238152806,0.00341054,3318.0,3317.8,0.27639994]
[1642238153001,0.00341054,3318.0,3317.9,5.545463]
[1642238153201,1.1587,3319.5,3317.9,7.6220435]
[1642238153401,1.13599734,3319.2,3318.6,1.26425634]
[1642238153600,0.01136847,3319.4,3318.7,0.045463]
[1642238153802,0.01136847,3319.4,3318.8,0.045463]
[1642238154002,0.01080005,3319.3,3318.8,0.045463]
[1642238154306,0.01023162,3319.2,3318.8,0.045463]
[1642238154503,0.01023162,3319.2,3318.9,0.045463]
[1642238154703,0.0096632,3319.1,3318.8,0.045463]
[1642238154903,0.0096632,3319.1,3318.7,1.93378195]
[1642238155104,0.00909478,3319.0,3318.7,1.93378195]
[1642238155508,0.00852635,3318.9,3318.8,5.545463]
[1642238155807,0.00852635,3318.9,3318.8,9.71655618]
[1642238156655,0.00852635,3318.9,3318.8,27.34655618]
[1642238156858,0.00852635,3318.9,3318.8,29.92278629]
[1642238157254,0.040917,3319.8,3318.9,5.5]
[1642238157454,2.06603018,3320.6,3319.0,17.63]
[1642238157756,2.06603018,3320.6,3319.7,0.75305]
[1642238158053,6.31603018,3320.8,3319.7,2.30074418]
[1642238158253,1.51855156,3320.3,3319.7,0.75305]
[1642238158854,1.51855156,3320.3,3319.4,1.5061]
[1642238159655,1.51855156,3320.3,3319.3,9.0609]
[1642238159854,1.51855156,3320.3,3319.4,3.5]
[1642238160899,1.51855156,3320.3,3319.3,9.0609]
[1642238161098,1.51855156,3320.3,3319.6,1.13867049]
[1642238162002,0.01023163,3320.7,3319.6,1.13867049]
[1642238162200,0.01023163,3320.7,3319.7,1.506077]
[1642238162399,0.0096632,3320.6,3319.7,3.36079194]
[1642238162799,0.00909478,3320.5,3319.8,1.1388]
[1642238163198,0.00852636,3320.4,3319.8,1.1388]
[1642238163400,0.00852636,3320.4,3319.9,2.6132504]
[1642238163599,1.09612867,3320.8,3319.9,2.6132504]
[1642238163600,0.00795793,3320.3,3320.2,1.49790633]
[1642238164252,0.00795793,3320.3,3320.2,5.46450566]
[1642238164553,0.00795793,3320.3,3320.2,5.47269668]
[1642238164749,0.00795793,3320.3,3320.2,5.49855269]
[1642238164949,0.00795793,3320.3,3320.2,1.49790633]
[1642238165752,0.00795793,3320.3,3319.9,1.505944]
[1642238165951,0.00795793,3320.3,3319.9,1.78972074]
[1642238166151,0.00738951,3320.2,3319.9,1.78972074]
[1642238166553,0.00682109,3320.1,3319.9,1.78972074]
[1642238166954,0.00625266,3320.0,3319.9,1.78972074]
[1642238167353,0.00625266,3320.0,3319.9,5.5134804]
[1642238167555,0.00625266,3320.0,3319.9,2.9134804]
[1642238167803,0.00625266,3320.0,3319.9,1.78972074]
[1642238168199,0.00625266,3320.0,3319.9,3.83972074]
[1642238169399,0.00625266,3320.0,3319.9,5.05417762]
[1642238169803,0.00625266,3320.0,3319.9,5.80710762]
[1642238170704,0.00625266,3320.0,3319.9,6.56002922]
[1642238171548,0.00625266,3320.0,3319.9,24.19002922]
[1642238172546,3.0,3320.3,3320.0,5.5]
[1642238172747,3.0,3320.3,3320.2,23.88279]
[1642238172950,2.68300868,3320.3,3320.2,23.88279]
[1642238173747,2.68300868,3320.3,3320.2,6.25279]
[1642238173950,2.68300868,3320.3,3320.2,8.56029633]
[1642238174951,2.68300868,3320.3,3320.2,7.80750633]
[1642238175415,2.68300868,3320.3,3320.2,11.30750633]
[1642238175611,2.68300868,3320.3,3320.2,7.80750633]
[1642238177112,2.68300868,3320.3,3320.2,26.19027633]
[1642238177516,0.040917,3321.4,3320.3,5.55]
[1642238177712,0.040917,3321.4,3320.8,0.75272]
[1642238177914,0.00738951,3321.3,3321.0,0.7527145]
[1642238178312,0.00682108,3321.2,3321.1,1.9784584]
[1642238178514,0.00682108,3321.2,3321.1,3.17830274]
[1642238178812,0.00682108,3321.2,3321.1,7.07050274]
[1642238179451,0.00682108,3321.2,3321.1,24.70050274]
[1642238180055,0.00682108,3321.2,3321.1,7.07050274]
[1642238180253,0.00682108,3321.2,3321.1,8.43510321]
[1642238180653,0.00682108,3321.2,3321.1,17.14821694]
[1642238180854,0.00682108,3321.2,3321.1,15.03096647]
[1642238181254,0.00682108,3321.2,3321.1,13.83112213]
[1642238181855,0.00682108,3321.2,3321.1,11.51413017]
[1642238182054,0.00682108,3321.2,3321.1,9.23726389]
[1642238182257,0.00682108,3321.2,3321.1,10.4645393]
[1642238183304,0.00682108,3321.2,3321.1,8.91978279]
[1642238184802,0.00682108,3321.2,3321.1,10.4645393]
[1642238185906,0.00682108,3321.2,3321.1,26.54978279]
[1642238186954,0.00682108,3321.2,3321.1,12.78153126]
[1642238187757,0.00682108,3321.2,3321.1,8.91978279]
[1642238188358,0.00682108,3321.2,3321.1,5.02758279]
[1642238188558,0.00682108,3321.2,3321.1,6.57235426]
[1642238189558,0.00682108,3321.2,3321.1,5.02758279]
[1642238191805,0.00682108,3321.2,3321.1,2.57449898]
[1642238192002,3.75682108,3321.2,3321.1,2.57449898]
[1642238192902,1.49475516,3321.1,3320.8,1.54477147]
[1642238193107,1.49475516,3321.1,3320.5,2.27686628]
[1642238193108,5.5,3320.8,3320.5,2.27686628]
[1642238193302,4.595463,3320.6,3320.5,2.27686628]
[1642238193801,4.59887354,3320.6,3320.5,2.27686628]
[1642238194053,4.59887354,3320.6,3320.0,3.86174847]
[1642238194054,4.4,3320.4,3320.0,3.86174847]
[1642238194253,1.08919026,3320.1,3320.0,3.86174847]
[1642238194453,1.08919026,3320.1,3319.4,1.54009793]
[1642238194656,1.08919026,3320.1,3319.4,3.82953828]
[1642238195056,1.08919026,3320.1,3319.5,0.00284212]
[1642238195256,3.33827178,3320.1,3319.5,0.00284212]
[1642238195855,0.75339,3319.8,3319.5,0.00284212]
[1642238196056,3.02786557,3319.8,3319.5,0.00284212]
[1642238196256,0.798853,3319.8,3319.5,0.00284212]
[1642238196656,2.99822364,3319.8,3319.5,0.00284212]
[1642238196855,2.99822364,3319.8,3319.1,2.80265851]
[1642238196856,0.798853,3319.8,3319.1,2.80265851]
[1642238197056,2.96526023,3319.8,3319.2,0.00454739]
[1642238197656,0.798853,3319.8,3319.2,0.00454739]
[1642238198606,3.798853,3319.8,3319.2,0.00454739]
[1642238199007,3.045463,3319.8,3319.2,0.00454739]
[1642238201555,3.0,3319.8,3319.2,0.00454739]
[1642238202356,3.0,3319.8,3319.3,0.75311]
[1642238202755,3.0,3319.8,3319.4,0.00341054]
[1642238203355,3.0,3319.8,3319.2,0.00454739]
[1642238204759,3.0,3319.8,3319.3,0.01263835]
[1642238204963,3.0,3319.8,3319.3,19.14873835]
[1642238205319,3.0,3319.8,3319.4,0.00341054]
[1642238205508,3.0,3319.8,3319.4,1.78722838]
[1642238205711,3.0,3319.8,3319.4,19.40296025]
[1642238205908,3.0,3319.8,3319.4,18.38643054]
[1642238206311,3.0,3319.8,3319.4,19.13952054]
[1642238206512,3.0,3319.8,3319.5,23.25082929]
[1642238206912,3.0,3319.8,3319.6,0.00227369]
[1642238207112,3.0,3319.8,3319.7,6.30293]
[1642238207313,3.0,3319.8,3319.7,23.93293]
[1642238207512,3.0,3319.8,3319.7,23.93463527]
[1642238208313,3.0,3319.8,3319.7,0.00170527]
[1642238213912,3.0,3319.8,3319.7,2.57707715]
[1642238216009,4.42502266,3319.8,3319.7,2.57707715]
[1642238218257,3.045463,3319.8,3319.7,2.57707715]
[1642238219658,3.0,3319.8,3319.7,2.57707715]
[1642238220308,3.045463,3319.8,3319.7,2.57707715]
[1642238221907,3.0,3319.8,3319.7,2.57707715]
[1642238224556,3.0,3319.8,3319.7,6.87707715]
[1642238224755,3.0,3319.8,3319.7,7.63002715]
[1642238225559,3.0,3319.8,3319.7,4.87707715]
[1642238226258,3.0,3319.8,3319.7,2.57707715]
[1642238226462,3.0,3319.8,3319.7,6.4400139]
[1642238227462,3.0,3319.8,3319.7,2.57707715]
[1642238229508,3.0,3319.8,3319.7,5.07707715]
[1642238231553,3.0,3319.8,3319.7,2.57707715]
[1642238236203,3.045463,3319.8,3319.7,2.57707715]
[1642238236404,3.0,3319.8,3319.7,2.57707715]
[1642238237408,3.0,3319.8,3319.7,2.57537188]
[1642238238506,3.0,3319.8,3319.7,5.22537188]
[1642238240662,3.0,3319.8,3319.7,2.57537188]
[1642238243408,3.045463,3319.8,3319.7,2.57537188]
[1642238243705,3.0,3319.8,3319.7,2.57537188]
[1642238245407,3.0,3319.8,3319.7,4.62537188]
[1642238246656,3.0,3319.8,3319.7,2.57537188]
[1642238252509,0.045463,3319.9,3319.8,5.5188]
[1642238252709,0.045463,3320.8,3319.8,26.47577255]
[1642238252915,0.045463,3320.3,3319.8,1.68893684]
[1642238253110,0.045463,3320.1,3319.8,1.68893684]
[1642238253307,0.045463,3320.1,3319.8,0.46993684]
[1642238253308,0.090926,3320.1,3319.8,0.46993684]
[1642238253509,0.045463,3319.9,3319.8,3.04530872]
[1642238253708,0.090926,3319.9,3319.8,2.57650872]
[1642238254855,0.045463,3319.9,3319.8,0.00113684]
[1642238255054,0.090926,3319.9,3319.8,0.00113684]
[1642238255457,0.045463,3319.9,3319.8,0.00113684]
[1642238256055,0.045463,3319.9,3319.8,1.50367846]
[1642238256256,0.045463,3320.0,3319.8,1.50367846]
[1642238256453,0.045463,3319.9,3319.8,1.50367846]
[1642238257054,0.045463,3320.0,3319.8,1.50367846]
[1642238257055,0.045463,3320.0,3319.8,4.07905034]
[1642238257255,0.045463,3320.1,3319.8,4.07905034]
[1642238257910,0.045463,3320.1,3319.9,2.57537188]
[1642238258510,0.045463,3320.1,3319.8,0.00113684]
[1642238258511,0.045463,3320.0,3319.8,0.00113684]
[1642238258714,0.045463,3319.9,3319.8,0.00113684]
[1642238258912,0.045463,3319.9,3319.7,0.00170527]
[1642238259111,0.679,3320.2,3319.7,0.00170527]
[1642238259112,0.045463,3319.8,3319.7,0.00170527]
[1642238259411,0.045463,3319.8,3319.3,0.00397896]
[1642238259611,0.00170527,3320.3,3319.3,0.00397896]
[1642238259612,0.045463,3319.4,3319.3,0.00397896]
[1642238260419,0.045463,3319.4,3319.2,0.00454739]
[1642238260813,0.045463,3319.3,3319.2,0.00454739]
[1642238263262,0.045463,3319.4,3319.2,0.00454739]
[1642238263760,4.345463,3319.3,3319.2,0.00454739]
[1642238263961,5.107563,3319.3,3319.2,0.00454739]
[1642238264163,5.107563,3319.3,3318.9,0.00625266]
[1642238264362,0.045463,3319.0,3318.9,0.00625266]
[1642238264562,0.045463,3319.0,3318.9,1.36241846]
[1642238265163,0.045463,3319.1,3318.9,1.36241846]
[1642238265417,0.045463,3319.2,3318.9,1.36241846]
[1642238265616,0.045463,3319.2,3319.0,0.00568423]
[1642238266215,0.045463,3319.1,3319.0,0.00568423]
[1642238267015,0.045463,3319.2,3319.0,0.00568423]
[1642238267616,0.090926,3319.1,3319.0,0.00568423]
[1642238267815,0.045463,3319.1,3319.0,0.00568423]
[1642238271060,0.045463,3319.1,3319.0,3.25568423]
[1642238271257,0.045463,3319.2,3319.0,3.25568423]
[1642238271456,0.045463,3319.2,3319.0,5.04314663]
[1642238271658,0.045463,3319.5,3319.1,1.79359164]
[1642238271862,0.090926,3319.5,3319.1,0.00511581]
[1642238272057,0.00113685,3320.2,3319.2,0.00454739]
[1642238272258,0.045463,3319.6,3319.1,6.21511581]
[1642238272458,0.090926,3319.5,3319.1,6.21511581]
[1642238272658,0.045463,3319.4,3319.3,1.12479189]
[1642238273115,0.045463,3319.4,3319.3,1.12877085]
[1642238273718,0.045463,3319.5,3319.3,1.12877085]
[1642238274114,0.045463,3319.5,3319.4,2.60341054]
[1642238274916,0.045463,3319.5,3319.4,0.00341054]
[1642238276117,0.090926,3319.5,3319.4,0.00341054]
[1642238277658,0.045463,3319.5,3319.4,0.00341054]
[1642238278059,0.090926,3319.5,3319.4,0.00341054]
[1642238279762,0.045463,3319.5,3319.4,0.00341054]
[1642238280061,0.045463,3319.5,3319.4,2.25341054]
[1642238280319,0.045463,3319.6,3319.4,2.25341054]
[1642238280508,0.045463,3319.7,3319.4,2.25341054]
[1642238280708,0.045463,3319.6,3319.5,0.00284212]
[1642238284364,0.045463,3319.6,3319.4,0.00341054]
[1642238284561,0.045463,3319.5,3319.4,0.00341054]
[1642238287067,0.045463,3319.5,3319.3,0.00397896]
[1642238287464,0.045463,3319.4,3319.3,0.00397896]
[1642238287918,0.045463,3319.4,3319.3,1.23769289]
[1642238288118,0.090926,3319.5,3319.3,1.23769289]
[1642238288319,0.045463,3319.5,3319.3,1.23769289]
[1642238288518,0.045463,3319.5,3319.4,0.00341054]
[1642238289118,0.045463,3319.7,3319.4,0.00341054]
[1642238289317,0.090926,3319.7,3319.4,0.00341054]
[1642238289721,0.045463,3319.6,3319.4,0.00341054]
[1642238290117,0.045463,3319.5,3319.4,0.00341054]
[1642238291556,0.090926,3319.5,3319.4,0.00341054]
[1642238292158,0.090926,3319.5,3319.3,0.00397896]
[1642238292363,0.045463,3319.5,3319.3,0.00397896]
[1642238292562,4.295463,3319.4,3319.3,0.00397896]
[1642238292760,4.295463,3319.4,3319.0,0.00568423]
[1642238292960,0.045463,3319.1,3319.0,0.00568423]
[1642238293560,0.045463,3319.1,3318.7,0.0073895]
[1642238293762,0.045463,3319.0,3318.7,0.0073895]
[1642238294361,0.045463,3319.0,3318.8,1.26989334]
[1642238294865,0.045463,3319.0,3318.9,0.00625266]
[1642238295315,0.045463,3319.1,3318.9,0.00625266]
[1642238295711,0.045463,3319.2,3318.9,0.00625266]
[1642238295912,0.045463,3319.3,3318.9,0.00625266]
[1642238296112,0.045463,3319.2,3318.9,0.00625266]
[1642238297316,0.045463,3319.1,3318.9,0.00625266]
[1642238297718,0.045463,3319.0,3318.9,0.00625266]
[1642238297923,0.090926,3319.0,3318.9,0.00625266]
[1642238298119,1.122726,3319.0,3318.9,0.00625266]
[1642238298318,1.122726,3319.0,3318.6,0.00795793]
[1642238298518,1.077263,3319.0,3318.6,0.00795793]
[1642238298717,0.045463,3318.7,3318.6,0.00795793]
[1642238299161,0.090926,3318.7,3318.6,0.00795793]
[1642238299360,0.045463,3318.7,3318.6,0.00795793]
[1642238299763,2.190926,3318.7,3318.6,0.00795793]
[1642238300764,0.090926,3318.7,3318.6,0.00795793]
[1642238309864,0.045463,3318.8,3318.6,0.00795793]
[1642238310068,0.045463,3318.9,3318.6,0.00795793]
[1642238310708,0.045463,3318.8,3318.6,0.00795793]
[1642238310908,3.0,3319.0,3318.6,0.00795793]
[1642238311109,3.0,3319.0,3318.6,1.79005291]
[1642238311311,3.045463,3319.0,3318.6,1.79005291]
[1642238311511,3.045463,3319.0,3318.7,0.0073895]
[1642238311713,3.045463,3319.0,3318.9,1.13683149]
[1642238312113,3.045463,3319.0,3318.9,1.14308415]
[1642238313213,3.0,3319.0,3318.9,1.14308415]
[1642238314563,3.0,3319.0,3318.9,3.19308415]
[1642238315566,3.0,3319.0,3318.9,1.14308415]
[1642238317164,3.045463,3319.0,3318.9,1.14308415]
[1642238317464,3.0,3319.0,3318.9,1.14308415]
[1642238317665,3.0,3319.0,3318.9,3.22510001]
[1642238318533,3.0,3319.0,3318.9,9.52823001]
[1642238318731,0.0001,3319.0,3318.9,12.10387135]
[1642238319330,0.0001,3319.0,3318.9,11.35074135]
[1642238320433,0.0001,3319.0,3318.9,10.21390986]
[1642238322366,0.0001,3319.0,3318.9,11.77878918]
[1642238322566,0.0001,3319.0,3318.9,15.41508918]
[1642238323369,0.045463,3319.7,3319.4,7.8089364]
[1642238323567,0.45315676,3321.3,3320.6,1.56492227]
[1642238323767,0.00625266,3321.1,3320.6,1.56492227]
[1642238324167,0.00568424,3321.0,3320.6,1.56492227]
[1642238324569,0.00511581,3320.9,3320.6,1.56492227]
[1642238324768,1.14074761,3320.7,3320.1,1.23629087]
[1642238324969,1.14074761,3320.7,3320.2,1.9384171]
[1642238325170,1.14074761,3320.7,3319.9,5.0204]
[1642238325171,0.00341054,3320.6,3320.0,1.9756949]
[1642238325616,0.00284212,3320.5,3320.0,1.80634896]
[1642238325818,0.00284212,3320.5,3319.9,5.0204]
[1642238326014,0.75306,3321.2,3319.9,5.0204]
[1642238326015,1.17850013,3320.0,3319.9,5.0204]
[1642238326214,1.17850013,3320.0,3319.8,5.185]
[1642238327222,1.17850013,3320.0,3319.8,7.00540981]
[1642238327418,0.00341054,3320.6,3319.8,7.00540981]
[1642238327618,0.00341054,3320.6,3319.9,1.1834]
[1642238327818,0.00284212,3320.5,3320.0,1.8404825]
[1642238328018,0.00284212,3320.5,3319.9,1.1834]
[1642238328219,0.0022737,3320.4,3319.9,1.1834]
[1642238328619,0.00170527,3320.3,3319.9,1.1834]
[1642238329066,1.43182581,3320.1,3319.9,1.1834]
[1642238329266,1.43182581,3320.1,3319.8,5.185]
[1642238330668,4.43182581,3320.1,3319.8,5.185]
[1642238336021,3.0,3320.1,3319.9,1.79391994]
[1642238336221,3.0,3320.1,3319.9,1.80840625]
[1642238336426,3.0,3320.1,3319.8,5.185]
[1642238336666,3.0,3320.1,3319.9,1.81060822]
[1642238337267,3.0,3320.1,3320.0,1.23328087]
[1642238337669,3.0,3320.1,3319.9,1.81060822]
[1642238338569,3.0,3320.1,3319.8,5.185]
[1642238338972,4.2095945,3320.1,3319.8,5.185]
[1642238339769,3.0,3320.1,3319.8,5.185]
[1642238340325,3.0,3320.1,3319.9,1.80180893]
[1642238340819,3.0,3320.1,3319.9,1.81557695]
[1642238341020,3.0,3320.1,3319.8,5.185]
[1642238342421,3.0,3320.1,3319.9,1.81511418]
[1642238342622,3.0,3320.1,3319.8,5.185]
[1642238342822,3.0,3320.1,3319.9,1.80071013]
[1642238343023,3.0,3320.1,3319.8,5.185]
[1642238344965,3.0,3320.1,3319.9,1.86391359]
[1642238345766,3.0,3320.1,3319.9,1.83352555]
[1642238346065,3.0,3320.1,3319.8,5.185]
[1642238347169,1.43653754,3320.0,3319.8,5.185]
[1642238349622,1.43653754,3320.0,3319.9,2.57534745]
[1642238351864,1.43653754,3320.0,3319.8,5.185]
[1642238353665,3.0,3320.1,3319.8,5.185]
[1642238355617,3.0,3320.1,3319.2,5.40080037]
[1642238355914,3.0,3320.1,3319.4,0.00341054]
[1642238356516,1.50030814,3320.0,3319.4,0.00341054]
[1642238356914,1.50030814,3320.0,3319.4,2.57884544]
[1642238357120,3.0,3320.1,3319.4,2.57884544]
[1642238357314,3.0,3320.1,3319.5,0.00284212]
[1642238357519,3.0,3320.1,3319.5,1.80863129]
[1642238357917,3.0,3320.1,3319.6,0.00227369]
[1642238358820,3.0,3320.1,3319.6,2.57770859]
[1642238359065,3.0,3320.1,3319.9,1.27274422]
[1642238360168,3.0,3320.1,3320.0,2.5754349]
[1642238362069,3.0,3320.1,3320.0,4.40600704]
[1642238362920,3.0,3320.1,3320.0,4.39063284]
[1642238363119,3.0,3320.1,3320.0,4.3898979]
[1642238363519,3.0,3320.1,3320.0,4.3757114]
[1642238363720,3.0,3320.1,3320.0,2.5754349]
[1642238365521,3.0,3320.1,3319.7,0.00170527]
[1642238365923,1.19059873,3320.0,3319.6,0.00227369]
[1642238366323,1.19059873,3320.0,3319.5,0.00284212]
[1642238366967,1.19059873,3320.0,3319.6,2.57538339]
[1642238367369,1.19059873,3320.0,3319.7,0.00170527]
[1642238368169,1.19059873,3320.0,3319.6,0.00227369]
[1642238369771,3.0,3320.1,3319.6,0.00227369]
[1642238371123,3.0,3320.1,3319.6,2.57765708]
[1642238371623,3.0,3320.1,3319.7,0.00170527]
[1642238372629,3.0,3320.1,3319.7,1.83550601]
[1642238373027,3.0,3320.1,3319.8,0.00113684]
[1642238373828,3.0,3320.1,3319.8,2.57652023]
[1642238374069,3.0,3320.1,3319.9,2.00053213]
[1642238375070,3.0,3320.1,3320.0,1.33008285]
[1642238375873,3.0,3320.1,3320.0,3.90546624]
[1642238377473,3.0,3320.1,3320.0,5.83596526]
[1642238380024,3.0,3320.1,3320.0,3.26058187]
[1642238380826,3.0,3320.1,3320.0,7.81058187]
[1642238383268,3.0,3320.1,3320.0,10.38534577]
[1642238386224,3.0,3320.1,3320.0,7.81058187]
[1642238386624,3.0,3320.1,3320.0,10.38544286]
[1642238386924,3.0,3320.1,3320.0,28.01544286]
[1642238387626,3.0,3320.1,3320.0,10.38544286]
[1642238388026,3.0,3320.1,3320.0,5.83544286]
[1642238388624,3.0,3320.1,3320.0,3.90494384]
[1642238389067,3.0,3320.1,3320.0,1.33008285]
[1642238389268,3.0,3320.1,3319.8,0.00113684]
[1642238389669,3.0,3320.1,3319.7,2.57681624]
[1642238389868,3.0,3320.1,3319.5,2.57795309]
[1642238390070,3.0,3320.1,3319.8,0.00113684]
[1642238390271,3.0,3320.1,3319.7,0.045463]
[1642238390470,3.0,3320.1,3319.8,2.57624781]
[1642238391073,1.43548896,3319.9,3319.8,2.57624781]
[1642238391273,1.43548896,3319.9,3319.8,0.00113684]
[1642238391671,1.43548896,3319.9,3319.5,0.00284212]
[1642238392574,2.85866814,3319.9,3319.5,0.00284212]
[1642238397886,1.80986814,3319.9,3319.5,0.00284212]
[1642238398388,0.37437918,3319.9,3319.5,0.00284212]
[1642238400320,0.37437918,3319.9,3319.5,0.04830512]
[1642238400723,0.37437918,3319.9,3319.6,0.00227369]
[1642238401522,0.37437918,3319.9,3319.7,0.045463]
[1642238401922,0.37437918,3319.9,3319.8,0.00113684]
[1642238402322,0.37437918,3319.9,3319.6,0.00227369]
[1642238404576,0.37437918,3319.9,3319.6,0.04773669]
[1642238404772,0.37437918,3319.9,3319.4,0.045463]
[1642238404974,0.37437918,3319.9,3319.7,0.00170527]
[1642238405174,0.37437918,3319.9,3319.5,0.00284212]
[1642238405375,0.37437918,3319.9,3319.7,0.045463]
[1642238405574,0.37437918,3319.9,3319.6,0.045463]
[1642238405775,0.37437918,3319.9,3319.8,0.00113684]
[1642238406075,0.37437918,3319.9,3319.7,0.00170527]
[1642238406474,0.37437918,3319.9,3319.7,0.04716827]
[1642238406877,0.37437918,3319.9,3319.8,0.00113684]
[1642238407273,0.37437918,3319.9,3319.7,0.00170527]
[1642238409723,0.37437918,3319.9,3319.5,0.00284212]
[1642238411975,0.41984218,3319.9,3319.3,0.00397896]
[1642238412274,0.41984218,3319.9,3318.7,0.0073895]
[1642238412475,2.62003453,3319.8,3318.7,0.0073895]
[1642238412675,2.62003453,3319.8,3318.4,0.00909477]
[1642238412676,1.10781857,3318.9,3318.4,0.00909477]
[1642238412878,2.04341857,3318.9,3318.4,0.00909477]
[1642238413575,2.21204078,3318.8,3318.2,0.01023162]
[1642238413775,0.75362,3318.7,3318.2,0.01023162]